[Event "DMP Ekstraliga 2020"]
[Site "Krakow"]
[Date "2020.08.31"]
[Round "6.19"]
[White "Huschenbeth, Niclas"]
[Black "Moranda, Wojciech"]
[Result "0-1"]
[ECO "B48"]
[WhiteElo "2605"]
[BlackElo "2605"]
[Annotator "ChessBase"]
[PlyCount "106"]
[EventDate "2020.08.26"]
[EventType "team-tourn"]
[EventCountry "POL"]
[SourceTitle "playchess.com"]
[Source "ChessBase"]
[SourceQuality "1"]
[WhiteTeam "Silesia Raciborz"]
[BlackTeam "Wieza Pegow"]
[TimeControl "30/5400+30:1800+30"]

1. e4 {[%emt 0:00:00]} c5 {[%emt 0:00:00]} 2. Nf3 {[%emt 0:00:00]} e6 {[%emt 0:00:05]} 3. d4 {[%emt 0:00:00]} cxd4 {[%emt 0:00:14]} 4. Nxd4 {[%emt 0:00:00]} Nc6 {[%emt 0:00:16]} 5. Nc3 {[%emt 0:00:00]} Qc7 {[%emt 0:00:20]} 6. Be3 {[%emt 0:00:00]} a6 {[%emt 0:00:16]} 7. Qf3 {[%emt 0:00:04]} Nf6 {[%emt 0:00:21]} 8. Nxc6 {[%emt 0:00:06]} bxc6 {[%emt 0:03:42]} 9. Qg3 {[%emt 0:01:05]} Qxg3 {[%emt 0:06:07]} 10. hxg3 {[%emt 0:00:04]} Rb8 {[%emt 0:01:27]} 11. b3 {[%emt 0:00:27]} d5 {[%emt 0:12:12]} 12. Bd3 {[%emt 0:00:17]} Bb4 {[%emt 0:08:36]} 13. Bd2 {[%emt 0:00:06]} h6 {[%emt 0:03:01]} 14. f3 {[%emt 0:02:35]} Nd7 {[%emt 0:09:29]} 15. Na4 {[%emt 0:13:40]} Bd6 {[%emt 0:05:04]} 16. g4 {[%emt 0:03:25]} f6 {[%emt 0:05:42]} 17. g5 {[%emt 0:08:51]} fxg5 {[%emt 0:00:38]} 18. Bxg5 {[%emt 0:00:45]} Kf7 {[%emt 0:06:33]} 19. Be3 {[%emt 0:02:05]} Bb7 {[%emt 0:02:30]} 20. f4 {[%emt 0:05:49]} c5 {[%emt 0:08:14]} 21. e5 {[%emt 0:15:11]} Be7 {[%emt 0:00:25]} 22. O-O {[%emt 0:00:11]} g6 {[%emt 0:04:11]} 23. c4 {[%emt 0:02:31]} d4 {[%emt 0:02:24]} 24. Bd2 {[%emt 0:00:10]} h5 {[%emt 0:04:53]} 25. Kh2 {[%emt 0:10:26]} Rbf8 {[%emt 0:01:34]} 26. g3 {[%emt 0:03:39]} Rhg8 {[%emt 0:04:55]} 27. Rae1 {[%emt 0:00:54]} Ke8 {[%emt 0:01:05]} 28. Nb2 {[%emt 0:02:16]} Kd8 {[%emt 0:00:57]} 29. Bc2 {[%emt 0:07:15]} Kc8 {[%emt 0:05:01]} 30. a3 {[%emt 0:07:00]} Bd8 {[%emt 0:01:37]} 31. b4 {[%emt 0:30:35]} h4 {[%emt 0:31:11]} 32. g4 {[%emt 0:00:59]} g5 {[%emt 0:00:17]} 33. Kh3 {[%emt 0:03:02]} gxf4 {[%emt 0:00:38]} 34. Bxf4 {[%emt 0:02:49]} cxb4 {[%emt 0:00:45]} 35. axb4 {[%emt 0:00:40]} Bg2+ {[%emt 0:00:09]} 36. Kxg2 {[%emt 0:00:04]} Rxg4+ {[%emt 0:00:04]} 37. Kh2 {[%emt 0:08:17]} Rgxf4 {[%emt 0:00:38]} 38. Rxf4 {[%emt 0:00:04]} Rxf4 {[%emt 0:00:05]} 39. Nd3 {[%emt 0:00:07]} Rf3 {[%emt 0:01:03]} 40. Re4 {[%emt 0:00:00]} Re3 {[%emt 0:00:00]} 41. Rxe3 {[%emt 0:00:00]} dxe3 {[%emt 0:00:00]} 42. Bd1 {[%emt 0:00:00]} Nxe5 {[%emt 0:00:00]} 43. Nxe5 {[%emt 0:02:39]} Bc7 {[%emt 0:00:00]} 44. Kg2 {[%emt 0:01:48]} Bxe5 {[%emt 0:00:00]} 45. Bg4 {[%emt 0:00:02]} Bc3 {[%emt 0:00:00]} 46. Bxe6+ {[%emt 0:01:01]} Kc7 {[%emt 0:00:00]} 47. Kf3 {[%emt 0:00:06]} Bxb4 {[%emt 0:00:00]} 48. Kxe3 {[%emt 0:00:06]} Bc5+ {[%emt 0:00:00]} 49. Kf3 {[%emt 0:02:46]} a5 {[%emt 0:00:00]} 50. Bf5 {[%emt 0:00:25]} a4 {[%emt 0:00:00]} 51. Kg4 {[%emt 0:00:16]} a3 {[%emt 0:00:00]} 52. Bb1 {[%emt 0:00:03]} Kd6 {[%emt 0:00:00]} 53. Kxh4 {[%emt 0:00:11]} Ke5 {[%emt 0:00:00]} 0-1

[Event "DMP Ekstraliga 2020"]
[Site "Krakow"]
[Date "2020.08.31"]
[Round "6.20"]
[White "Dziuba, Marcin"]
[Black "Nasuta, Grzegorz"]
[Result "1/2-1/2"]
[ECO "D11"]
[WhiteElo "2590"]
[BlackElo "2553"]
[Annotator "ChessBase"]
[PlyCount "59"]
[EventDate "2020.08.26"]
[EventType "team-tourn"]
[EventCountry "POL"]
[SourceTitle "playchess.com"]
[Source "ChessBase"]
[SourceQuality "1"]
[WhiteTeam "Wieza Pegow"]
[BlackTeam "Silesia Raciborz"]
[TimeControl "30/5400+30:1800+30"]

1. d4 {[%emt 0:00:24]} d5 {[%emt 0:00:00]} 2. c4 {[%emt 0:00:04]} c6 {[%emt 0:00:00]} 3. Nf3 {[%emt 0:00:07]} Nf6 {[%emt 0:00:00]} 4. e3 {[%emt 0:00:05]} e6 {[%emt 0:00:33]} 5. Bd3 {[%emt 0:02:52]} dxc4 {[%emt 0:00:26]} 6. Bxc4 {[%emt 0:00:05]} Nbd7 {[%emt 0:00:21]} 7. O-O {[%emt 0:01:25]} Bd6 {[%emt 0:01:19]} 8. Qc2 {[%emt 0:00:21]} O-O {[%emt 0:04:42]} 9. e4 {[%emt 0:00:36]} e5 {[%emt 0:00:44]} 10. Be3 {[%emt 0:00:24]} Qe7 {[%emt 0:15:53]} 11. Nbd2 {[%emt 0:07:07]} exd4 {[%emt 0:16:27]} 12. Bxd4 {[%emt 0:05:12]} Ne5 {[%emt 0:00:23]} 13. Rae1 {[%emt 0:25:43]} Nxc4 {[%emt 0:13:24]} 14. Nxc4 {[%emt 0:05:41]} Bb4 {[%emt 0:03:01]} 15. Re3 {[%emt 0:01:27]} Be6 {[%emt 0:00:39]} 16. a3 {[%emt 0:09:42]} Bc5 {[%emt 0:02:01]} 17. b4 {[%emt 0:04:57]} Bxd4 {[%emt 0:00:21]} 18. Nxd4 {[%emt 0:00:04]} Rad8 {[%emt 0:11:48]} 19. Nxe6 {[%emt 0:02:09]} Qxe6 {[%emt 0:07:55]} 20. e5 {[%emt 0:02:22]} Nd5 {[%emt 0:02:51]} 21. Rh3 {[%emt 0:01:47]} Qg6 {[%emt 0:06:39]} 22. Qxg6 {[%emt 0:00:39]} hxg6 {[%emt 0:06:01]} 23. f4 {[%emt 0:01:40]} f6 {[%emt 0:00:06]} 24. Rhf3 {[%emt 0:07:23]} Rfe8 {[%emt 0:02:20]} 25. Re1 {[%emt 0:00:57]} Nb6 {[%emt 0:01:38]} 26. Na5 {[%emt 0:03:20]} Re7 {[%emt 0:00:06]} 27. Rfe3 {[%emt 0:01:21]} Nd5 {[%emt 0:01:53]} 28. Re4 {[%emt 0:00:34]} Nc3 {[%emt 0:00:21]} 29. Rc4 {[%emt 0:01:33]} Rd3 {[%emt 0:00:06]} 30. Kf2 {[%emt 0:09:29]} 1/2-1/2

[Event "DMP Ekstraliga 2020"]
[Site "Krakow"]
[Date "2020.08.31"]
[Round "6.21"]
[White "Markowski, Tomasz"]
[Black "Hnydiuk, Aleksander"]
[Result "1-0"]
[ECO "A34"]
[WhiteElo "2548"]
[BlackElo "2411"]
[Annotator "ChessBase"]
[PlyCount "87"]
[EventDate "2020.08.26"]
[EventType "team-tourn"]
[EventCountry "POL"]
[SourceTitle "playchess.com"]
[Source "ChessBase"]
[SourceQuality "1"]
[WhiteTeam "Silesia Raciborz"]
[BlackTeam "Wieza Pegow"]
[TimeControl "30/5400+30:1800+30"]

1. c4 {[%emt 0:00:00]} Nf6 {[%emt 0:07:17]} 2. g3 {[%emt 0:00:00]} c5 {[%emt 0:02:16]} 3. Bg2 {[%emt 0:00:00]} d5 {[%emt 0:00:10]} 4. cxd5 {[%emt 0:00:11]} Nxd5 {[%emt 0:00:05]} 5. Nc3 {[%emt 0:00:05]} Nc7 {[%emt 0:01:09]} 6. Qb3 {[%emt 0:00:26]} Nc6 {[%emt 0:00:28]} 7. Bxc6+ {[%emt 0:00:17]} bxc6 {[%emt 0:00:03]} 8. Nf3 {[%emt 0:00:19]} f6 {[%emt 0:00:51]} 9. d3 {[%emt 0:00:18]} e5 {[%emt 0:00:08]} 10. Qa4 {[%emt 0:02:39]} Qd7 {[%emt 0:24:02]} 11. Be3 {[%emt 0:01:56]} Rb8 {[%emt 0:06:03]} 12. O-O {[%emt 0:10:23]} Ne6 {[%emt 0:01:26]} 13. b3 {[%emt 0:06:49]} Be7 {[%emt 0:01:34]} 14. Rac1 {[%emt 0:03:11]} Nd4 {[%emt 0:03:28]} 15. Bxd4 {[%emt 0:01:44]} cxd4 {[%emt 0:00:06]} 16. Ne4 {[%emt 0:00:17]} Rb5 {[%emt 0:02:10]} 17. Rc2 {[%emt 0:02:42]} Bb7 {[%emt 0:15:47]} 18. Rfc1 {[%emt 0:03:07]} Qd5 {[%emt 0:08:07]} 19. Qc4 {[%emt 0:07:41]} Ba3 {[%emt 0:03:43]} 20. Qxd5 {[%emt 0:04:21]} Rxd5 {[%emt 0:04:06]} 21. Rb1 {[%emt 0:01:04]} a5 {[%emt 0:02:12]} 22. Nfd2 {[%emt 0:02:23]} Kf7 {[%emt 0:04:38]} 23. b4 {[%emt 0:06:14]} Ba8 {[%emt 0:05:23]} 24. Nc4 {[%emt 0:04:03]} Bxb4 {[%emt 0:01:02]} 25. Nb6 {[%emt 0:00:13]} Rb5 {[%emt 0:02:16]} 26. Nxa8 {[%emt 0:00:08]} Rxa8 {[%emt 0:00:02]} 27. Rxc6 {[%emt 0:00:05]} Rab8 {[%emt 0:00:26]} 28. a4 {[%emt 0:03:17]} R5b6 {[%emt 0:01:10]} 29. Rc7+ {[%emt 0:02:31]} Kg6 {[%emt 0:00:21]} 30. g4 {[%emt 0:00:30]} Bf8 {[%emt 0:01:54]} 31. Rxb6 {[%emt 0:30:37]} Rxb6 {[%emt 0:30:02]} 32. Ra7 {[%emt 0:00:03]} Rb2 {[%emt 0:02:47]} 33. Ng3 {[%emt 0:02:23]} Bb4 {[%emt 0:00:42]} 34. Nf5 {[%emt 0:07:51]} Bf8 {[%emt 0:00:19]} 35. Ng3 {[%emt 0:01:26]} Bb4 {[%emt 0:00:36]} 36. Kf1 {[%emt 0:00:53]} Rb1+ {[%emt 0:00:11]} 37. Kg2 {[%emt 0:00:05]} Rb2 {[%emt 0:00:04]} 38. Kf3 {[%emt 0:00:53]} Ra2 {[%emt 0:00:25]} 39. Nf5 {[%emt 0:00:49]} Bf8 {[%emt 0:00:12]} 40. Rxa5 {[%emt 0:00:00]} h5 {[%emt 0:00:00]} 41. h3 {[%emt 0:00:00]} e4+ {[%emt 0:00:00]} 42. dxe4 {[%emt 0:00:00]} Ra3+ {[%emt 0:00:00]} 43. Kg2 {[%emt 0:00:00]} hxg4 {[%emt 0:00:00]} 44. hxg4 {[%emt 0:00:00]} 1-0

[Event "DMP Ekstraliga 2020"]
[Site "Krakow"]
[Date "2020.08.31"]
[Round "6.22"]
[White "Zilka, Stepan"]
[Black "Krzyzanowski, Marcin"]
[Result "1-0"]
[ECO "E71"]
[WhiteElo "2564"]
[BlackElo "2518"]
[Annotator "ChessBase"]
[PlyCount "91"]
[EventDate "2020.08.26"]
[EventType "team-tourn"]
[EventCountry "POL"]
[SourceTitle "playchess.com"]
[Source "ChessBase"]
[SourceQuality "1"]
[WhiteTeam "Wieza Pegow"]
[BlackTeam "Silesia Raciborz"]
[TimeControl "30/5400+30:1800+30"]

1. d4 {[%emt 0:00:00]} Nf6 {[%emt 0:00:00]} 2. c4 {[%emt 0:00:00]} g6 {[%emt 0:00:00]} 3. Nc3 {[%emt 0:00:00]} Bg7 {[%emt 0:00:00]} 4. e4 {[%emt 0:00:00]} d6 {[%emt 0:00:00]} 5. h3 {[%emt 0:00:34]} O-O {[%emt 0:00:36]} 6. Be3 {[%emt 0:00:30]} c5 {[%emt 0:04:19]} 7. d5 {[%emt 0:00:05]} e6 {[%emt 0:00:18]} 8. Bd3 {[%emt 0:00:18]} exd5 {[%emt 0:00:24]} 9. exd5 {[%emt 0:00:08]} Na6 {[%emt 0:04:02]} 10. Nf3 {[%emt 0:00:53]} Nc7 {[%emt 0:00:19]} 11. a4 {[%emt 0:00:18]} Na6 {[%emt 0:01:11]} 12. O-O {[%emt 0:00:08]} Nb4 {[%emt 0:00:04]} 13. Bb1 {[%emt 0:00:03]} Re8 {[%emt 0:01:35]} 14. Ra3 {[%emt 0:01:21]} a6 {[%emt 0:04:17]} 15. Qd2 {[%emt 0:01:28]} Bd7 {[%emt 0:08:14]} 16. Bg5 {[%emt 0:00:15]} Qc7 {[%emt 0:10:02]} 17. Qf4 {[%emt 0:04:19]} Nh5 {[%emt 0:02:42]} 18. Qh2 {[%emt 0:00:01]} f5 {[%emt 0:02:12]} 19. Kh1 {[%emt 0:02:57]} Rab8 {[%emt 0:17:55]} 20. Rg1 {[%emt 0:01:33]} Nf6 {[%emt 0:11:40]} 21. Bf4 {[%emt 0:19:30]} Bf8 {[%emt 0:00:13]} 22. a5 {[%emt 0:00:01]} b5 {[%emt 0:05:33]} 23. axb6 {[%emt 0:00:06]} Rxb6 {[%emt 0:00:41]} 24. Nd1 {[%emt 0:03:21]} Bg7 {[%emt 0:02:40]} 25. Bc1 {[%emt 0:01:45]} Rbb8 {[%emt 0:02:09]} 26. Ne3 {[%emt 0:02:18]} Re7 {[%emt 0:03:39]} 27. g4 {[%emt 0:00:52]} fxg4 {[%emt 0:00:31]} 28. Nxg4 {[%emt 0:06:08]} Nxg4 {[%emt 0:09:01]} 29. hxg4 {[%emt 0:00:10]} Rbe8 {[%emt 0:00:04]} 30. Bf4 {[%emt 0:07:22]} Be5 {[%emt 0:07:32]} 31. Bxe5 {[%emt 0:34:37]} dxe5 {[%emt 0:30:04]} 32. Ng5 {[%emt 0:00:04]} Qb6 {[%emt 0:00:48]} 33. Rh3 {[%emt 0:02:36]} Qf6 {[%emt 0:00:56]} 34. Ne4 {[%emt 0:01:50]} Qf8 {[%emt 0:01:28]} 35. Nxc5 {[%emt 0:02:48]} Qf4 {[%emt 0:00:04]} 36. Be4 {[%emt 0:06:37]} Rc8 {[%emt 0:00:53]} 37. Qxf4 {[%emt 0:04:09]} exf4 {[%emt 0:00:02]} 38. Nxd7 {[%emt 0:01:18]} Rxd7 {[%emt 0:00:06]} 39. b3 {[%emt 0:04:11]} a5 {[%emt 0:02:35]} 40. Ra1 {[%emt 0:00:00]} Rc5 {[%emt 0:00:00]} 41. Rf3 {[%emt 0:00:00]} Rf7 {[%emt 0:00:00]} 42. Kg2 {[%emt 0:00:00]} Kf8 {[%emt 0:00:00]} 43. Rc3 {[%emt 0:00:00]} Ke7 {[%emt 0:00:00]} 44. Rcc1 {[%emt 0:00:00]} Kd6 {[%emt 0:00:00]} 45. Re1 {[%emt 0:00:00]} Na6 {[%emt 0:00:00]} 46. Bxg6 {[%emt 0:00:00]} 1-0

[Event "DMP Ekstraliga 2020"]
[Site "Krakow"]
[Date "2020.08.31"]
[Round "6.23"]
[White "Jakubowski, Krzysztof"]
[Black "Plat, Vojtech"]
[Result "1/2-1/2"]
[ECO "B00"]
[WhiteElo "2481"]
[BlackElo "2566"]
[Annotator "ChessBase"]
[PlyCount "36"]
[EventDate "2020.08.26"]
[EventType "team-tourn"]
[EventCountry "POL"]
[SourceTitle "playchess.com"]
[Source "ChessBase"]
[SourceQuality "1"]
[WhiteTeam "Silesia Raciborz"]
[BlackTeam "Wieza Pegow"]
[TimeControl "30/5400+30:1800+30"]

1. e4 {[%emt 0:00:00]} d6 {[%emt 0:00:07]} 2. d4 {[%emt 0:00:03]} Nf6 3. f3 {[%emt 0:00:17]} g6 {[%emt 0:00:15]} 4. Nc3 {[%emt 0:01:40]} Bg7 {[%emt 0:00:04]} 5. Be3 {[%emt 0:00:07]} Nc6 {[%emt 0:00:23]} 6. Nge2 {[%emt 0:01:01]} e5 {[%emt 0:00:24]} 7. d5 {[%emt 0:00:25]} Ne7 {[%emt 0:00:07]} 8. Qd2 {[%emt 0:02:17]} c6 {[%emt 0:00:41]} 9. O-O-O {[%emt 0:01:11]} cxd5 {[%emt 0:01:47]} 10. exd5 {[%emt 0:00:55]} Nf5 {[%emt 0:00:07]} 11. g4 {[%emt 0:04:00]} Nxe3 {[%emt 0:02:53]} 12. Qxe3 {[%emt 0:00:06]} Qb6 {[%emt 0:03:50]} 13. Qxb6 {[%emt 0:05:41]} axb6 {[%emt 0:00:56]} 14. Kb1 {[%emt 0:03:25]} Bd7 {[%emt 0:01:49]} 15. Ng3 {[%emt 0:01:16]} Ke7 {[%emt 0:03:16]} 16. h4 {[%emt 0:03:10]} h6 {[%emt 0:01:08]} 17. Bb5 {[%emt 0:32:36]} Ra5 {[%emt 0:03:54]} 18. Bxd7 {[%emt 0:01:16]} Kxd7 {[%emt 0:00:07]} 1/2-1/2

[Event "DMP Ekstraliga 2020"]
[Site "Krakow"]
[Date "2020.08.31"]
[Round "6.24"]
[White "Majdan, Joanna"]
[Black "Worek, Joanna"]
[Result "0-1"]
[ECO "B67"]
[WhiteElo "2325"]
[BlackElo "2326"]
[Annotator "ChessBase"]
[PlyCount "110"]
[EventDate "2020.08.26"]
[EventType "team-tourn"]
[EventCountry "POL"]
[SourceTitle "playchess.com"]
[Source "ChessBase"]
[SourceQuality "1"]
[WhiteTeam "Wieza Pegow"]
[BlackTeam "Silesia Raciborz"]
[TimeControl "30/5400+30:1800+30"]

1. e4 {[%emt 0:00:00]} c5 {[%emt 0:00:00]} 2. Nf3 {[%emt 0:00:00]} Nc6 {[%emt 0:00:00]} 3. d4 {[%emt 0:00:00]} cxd4 {[%emt 0:00:00]} 4. Nxd4 {[%emt 0:00:00]} Nf6 {[%emt 0:00:03]} 5. Nc3 {[%emt 0:00:04]} d6 {[%emt 0:00:21]} 6. Bg5 {[%emt 0:01:51]} e6 {[%emt 0:01:28]} 7. Qd2 {[%emt 0:01:04]} a6 {[%emt 0:00:48]} 8. O-O-O {[%emt 0:01:27]} Bd7 {[%emt 0:01:39]} 9. f4 {[%emt 0:02:31]} b5 {[%emt 0:07:43]} 10. Bxf6 {[%emt 0:04:28]} gxf6 {[%emt 0:00:12]} 11. Kb1 {[%emt 0:00:21]} Qb6 {[%emt 0:03:58]} 12. Nce2 {[%emt 0:00:32]} b4 {[%emt 0:08:07]} 13. h4 {[%emt 0:03:03]} h5 {[%emt 0:04:54]} 14. Rh3 {[%emt 0:03:36]} a5 {[%emt 0:04:44]} 15. Qe1 {[%emt 0:05:45]} Rc8 {[%emt 0:06:11]} 16. Rhd3 {[%emt 0:05:47]} a4 {[%emt 0:07:37]} 17. Nxc6 {[%emt 0:04:20]} Bxc6 {[%emt 0:02:46]} 18. Nd4 {[%emt 0:00:06]} Qc5 {[%emt 0:03:04]} 19. Nxc6 {[%emt 0:04:34]} Rxc6 {[%emt 0:10:13]} 20. c3 {[%emt 0:04:38]} Bh6 {[%emt 0:09:51]} 21. Qd2 {[%emt 0:03:49]} b3 {[%emt 0:01:15]} 22. a3 {[%emt 0:06:34]} Ke7 {[%emt 0:06:04]} 23. Rd4 {[%emt 0:00:25]} Bxf4 {[%emt 0:00:39]} 24. Qe2 {[%emt 0:05:04]} Rg8 {[%emt 0:06:57]} 25. Rxa4 {[%emt 0:02:02]} Rg3 {[%emt 0:03:00]} 26. Rad4 {[%emt 0:08:11]} Be5 {[%emt 0:03:56]} 27. R4d3 {[%emt 0:02:32]} Rg4 {[%emt 0:00:09]} 28. g3 {[%emt 0:03:14]} Rc8 {[%emt 0:01:34]} 29. Bh3 {[%emt 0:06:01]} Rxg3 {[%emt 0:00:25]} 30. Qxh5 {[%emt 0:00:48]} Qf2 {[%emt 0:02:56]} 31. R3d2 {[%emt 0:32:57]} Qe3 {[%emt 0:30:29]} 32. Bf1 {[%emt 0:00:14]} Qxe4+ {[%emt 0:02:00]} 33. Bd3 {[%emt 0:00:04]} Qf4 {[%emt 0:00:29]} 34. Qe2 {[%emt 0:08:17]} Rh3 {[%emt 0:00:02]} 35. Ba6 {[%emt 0:01:04]} Rb8 {[%emt 0:01:44]} 36. h5 {[%emt 0:01:22]} Qf5+ {[%emt 0:00:08]} 37. Ka1 {[%emt 0:01:33]} d5 {[%emt 0:01:59]} 38. h6 {[%emt 0:01:21]} Qf4 {[%emt 0:00:41]} 39. h7 {[%emt 0:01:22]} Rxh7 {[%emt 0:00:16]} 40. Rf1 {[%emt 0:00:00]} Qg3 {[%emt 0:00:00]} 41. Rd3 {[%emt 0:00:00]} Rh2 {[%emt 0:00:00]} 42. Rxg3 {[%emt 0:00:00]} Rxe2 {[%emt 0:00:00]} 43. Bxe2 {[%emt 0:00:00]} Bxg3 {[%emt 0:00:00]} 44. c4 {[%emt 0:00:00]} d4 {[%emt 0:00:00]} 45. Kb1 {[%emt 0:00:00]} f5 {[%emt 0:00:00]} 46. a4 {[%emt 0:00:00]} Bc7 {[%emt 0:00:00]} 47. c5 {[%emt 0:00:00]} f4 {[%emt 0:00:00]} 48. Kc1 {[%emt 0:00:00]} e5 {[%emt 0:00:00]} 49. Bd3 {[%emt 0:00:00]} Ra8 {[%emt 0:00:00]} 50. Bb5 {[%emt 0:00:00]} Ba5 {[%emt 0:00:00]} 51. Rf3 {[%emt 0:00:00]} Rc8 {[%emt 0:00:00]} 52. c6 {[%emt 0:00:00]} Kd6 {[%emt 0:00:00]} 53. Rxb3 {[%emt 0:00:00]} e4 {[%emt 0:00:00]} 54. Rh3 {[%emt 0:00:00]} f3 {[%emt 0:00:00]} 55. Rh5 {[%emt 0:00:00]} e3 {[%emt 0:00:00]} 0-1

[Event "DMP Ekstraliga 2020"]
[Site "Krakow"]
[Date "2020.08.31"]
[Round "6.25"]
[White "Matuszewski, Michal"]
[Black "Kempinski, Robert"]
[Result "1/2-1/2"]
[ECO "A41"]
[WhiteElo "2508"]
[BlackElo "2568"]
[Annotator "ChessBase"]
[PlyCount "33"]
[EventDate "2020.08.26"]
[EventType "team-tourn"]
[EventCountry "POL"]
[SourceTitle "playchess.com"]
[Source "ChessBase"]
[SourceQuality "1"]
[WhiteTeam "Dwie Wieze Krakow"]
[BlackTeam "Miedz Legnica"]
[TimeControl "30/5400+30:1800+30"]

1. d4 {[%emt 0:00:00]} d6 {[%emt 0:00:00]} 2. Nf3 {[%emt 0:04:11]} g6 {[%emt 0:00:18]} 3. c3 {[%emt 0:02:05]} Nf6 {[%emt 0:06:02]} 4. Bg5 {[%emt 0:01:06]} Nbd7 {[%emt 0:00:35]} 5. Nbd2 {[%emt 0:00:15]} h6 {[%emt 0:00:51]} 6. Bh4 {[%emt 0:00:47]} Bg7 {[%emt 0:06:56]} 7. e4 O-O {[%emt 0:06:46]} 8. Be2 {[%emt 0:04:11]} Nh5 9. Bg3 {[%emt 0:04:51]} c5 {[%emt 0:05:07]} 10. Qc2 {[%emt 0:03:42]} cxd4 {[%emt 0:06:10]} 11. cxd4 {[%emt 0:06:48]} Nb8 {[%emt 0:01:14]} 12. O-O {[%emt 0:11:06]} Nxg3 {[%emt 0:01:04]} 13. hxg3 {[%emt 0:00:10]} Bg4 {[%emt 0:01:50]} 14. Rac1 {[%emt 0:05:23]} Nc6 {[%emt 0:05:43]} 15. d5 {[%emt 0:05:00]} Ne5 {[%emt 0:01:50]} 16. Qb3 {[%emt 0:04:50]} Nd7 {[%emt 0:03:13]} 17. Rc2 {[%emt 0:03:53]} 1/2-1/2

[Event "DMP Ekstraliga 2020"]
[Site "Krakow"]
[Date "2020.08.31"]
[Round "6.26"]
[White "Heberla, Bartlomiej"]
[Black "Druska, Juraj"]
[Result "0-1"]
[ECO "A13"]
[WhiteElo "2566"]
[BlackElo "2515"]
[Annotator "ChessBase"]
[PlyCount "84"]
[EventDate "2020.08.26"]
[EventType "team-tourn"]
[EventCountry "POL"]
[SourceTitle "playchess.com"]
[Source "ChessBase"]
[SourceQuality "1"]
[WhiteTeam "Miedz Legnica"]
[BlackTeam "Dwie Wieze Krakow"]
[BlackTeamCountry "SVK"]
[TimeControl "30/5400+30:1800+30"]

1. c4 {[%emt 0:00:08]} e6 {[%emt 0:00:09]} 2. Nf3 {[%emt 0:00:25]} d5 {[%emt 0:00:07]} 3. e3 {[%emt 0:00:09]} c6 {[%emt 0:02:42]} 4. d4 {[%emt 0:02:37]} Bd6 {[%emt 0:00:27]} 5. Bd3 {[%emt 0:00:14]} f5 {[%emt 0:00:31]} 6. O-O {[%emt 0:00:09]} Nf6 {[%emt 0:00:28]} 7. b3 {[%emt 0:00:05]} Qe7 {[%emt 0:00:46]} 8. Bb2 {[%emt 0:00:06]} O-O {[%emt 0:07:11]} 9. Nc3 {[%emt 0:00:09]} Ne4 {[%emt 0:05:16]} 10. Ne2 {[%emt 0:04:20]} Nd7 {[%emt 0:07:46]} 11. Ne5 {[%emt 0:02:55]} Ba3 {[%emt 0:08:52]} 12. Bxa3 {[%emt 0:08:58]} Qxa3 {[%emt 0:00:10]} 13. f4 {[%emt 0:05:27]} Nxe5 {[%emt 0:16:33]} 14. fxe5 {[%emt 0:02:59]} Bd7 {[%emt 0:01:33]} 15. Qc1 {[%emt 0:07:22]} Qe7 {[%emt 0:02:05]} 16. Qe1 {[%emt 0:00:13]} a5 {[%emt 0:06:35]} 17. Bxe4 {[%emt 0:04:48]} dxe4 {[%emt 0:09:17]} 18. c5 {[%emt 0:01:24]} Be8 {[%emt 0:06:18]} 19. Nc3 {[%emt 0:00:20]} g5 {[%emt 0:00:41]} 20. Na4 {[%emt 0:00:36]} f4 {[%emt 0:04:35]} 21. Nb6 {[%emt 0:18:07]} Rd8 {[%emt 0:00:05]} 22. Nc4 {[%emt 0:00:06]} Bg6 {[%emt 0:00:30]} 23. Nd6 {[%emt 0:00:14]} h5 {[%emt 0:01:46]} 24. Qxa5 {[%emt 0:10:35]} f3 {[%emt 0:02:11]} 25. g3 {[%emt 0:08:31]} h4 {[%emt 0:07:12]} 26. Kf2 {[%emt 0:00:20]} Qh7 {[%emt 0:03:14]} 27. g4 {[%emt 0:01:50]} h3 {[%emt 0:03:00]} 28. Rg1 {[%emt 0:00:13]} Rd7 {[%emt 0:00:43]} 29. Rg3 {[%emt 0:02:11]} Qh4 {[%emt 0:01:16]} 30. Rag1 {[%emt 0:02:26]} Kh7 {[%emt 0:01:44]} 31. Qe1 {[%emt 0:32:35]} Rf4 {[%emt 0:30:20]} 32. Qf1 {[%emt 0:00:40]} Rxg4 {[%emt 0:00:16]} 33. Qxh3 {[%emt 0:00:16]} Bf5 {[%emt 0:00:42]} 34. Qxh4+ {[%emt 0:05:52]} Rxh4 {[%emt 0:00:06]} 35. h3 {[%emt 0:00:04]} g4 {[%emt 0:01:32]} 36. Ne8 {[%emt 0:01:39]} Kh6 {[%emt 0:00:48]} 37. Nf6 {[%emt 0:00:08]} Rf7 {[%emt 0:00:32]} 38. hxg4 {[%emt 0:08:03]} Rh2+ {[%emt 0:00:27]} 39. Kf1 {[%emt 0:00:15]} Bg6 {[%emt 0:00:09]} 40. g5+ {[%emt 0:00:00]} Kg7 {[%emt 0:00:00]} 41. Rg4 {[%emt 0:00:00]} Rf8 {[%emt 0:00:00]} 42. Rf4 {[%emt 0:00:00]} Rxa2 {[%emt 0:00:00]} 0-1

[Event "DMP Ekstraliga 2020"]
[Site "Krakow"]
[Date "2020.08.31"]
[Round "6.27"]
[White "Leniart, Arkadiusz"]
[Black "Olszewski, Michal"]
[Result "0-1"]
[ECO "B90"]
[WhiteElo "2482"]
[BlackElo "2547"]
[Annotator "ChessBase"]
[PlyCount "62"]
[EventDate "2020.08.26"]
[EventType "team-tourn"]
[EventCountry "POL"]
[SourceTitle "playchess.com"]
[Source "ChessBase"]
[SourceQuality "1"]
[WhiteTeam "Dwie Wieze Krakow"]
[BlackTeam "Miedz Legnica"]
[TimeControl "30/5400+30:1800+30"]

1. e4 {[%emt 0:00:00]} c5 {[%emt 0:00:03]} 2. Nf3 {[%emt 0:00:00]} d6 {[%emt 0:00:04]} 3. d4 {[%emt 0:00:00]} cxd4 {[%emt 0:00:03]} 4. Nxd4 {[%emt 0:00:00]} Nf6 {[%emt 0:00:02]} 5. Nc3 {[%emt 0:00:00]} a6 {[%emt 0:00:03]} 6. h3 {[%emt 0:00:01]} e6 {[%emt 0:00:34]} 7. g4 {[%emt 0:01:00]} Nfd7 {[%emt 0:00:06]} 8. Bg2 {[%emt 0:00:44]} Be7 {[%emt 0:01:56]} 9. Be3 {[%emt 0:05:50]} Nc6 {[%emt 0:00:38]} 10. Qe2 {[%emt 0:08:30]} O-O {[%emt 0:02:08]} 11. O-O-O {[%emt 0:08:02]} Nxd4 {[%emt 0:00:41]} 12. Bxd4 {[%emt 0:00:22]} b5 {[%emt 0:00:19]} 13. e5 {[%emt 0:09:57]} d5 {[%emt 0:00:59]} 14. f4 {[%emt 0:16:40]} Bb7 {[%emt 0:07:06]} 15. Qf2 {[%emt 0:05:27]} b4 {[%emt 0:03:59]} 16. Ne2 {[%emt 0:04:59]} a5 {[%emt 0:00:10]} 17. Kb1 {[%emt 0:01:13]} a4 {[%emt 0:06:37]} 18. Nc1 {[%emt 0:00:15]} Qc7 {[%emt 0:07:35]} 19. h4 {[%emt 0:02:32]} Rfc8 {[%emt 0:06:18]} 20. f5 {[%emt 0:08:47]} Bc5 {[%emt 0:20:36]} 21. Bxc5 {[%emt 0:09:06]} Nxc5 {[%emt 0:00:07]} 22. Rh3 {[%emt 0:04:08]} Ba6 {[%emt 0:08:33]} 23. Re1 {[%emt 0:05:31]} b3 {[%emt 0:10:44]} 24. f6 {[%emt 0:07:14]} bxa2+ {[%emt 0:00:47]} 25. Nxa2 {[%emt 0:00:33]} Rab8 {[%emt 0:02:57]} 26. Qd4 {[%emt 0:01:09]} Nd3 {[%emt 0:03:56]} 27. cxd3 {[%emt 0:00:31]} Qc2+ {[%emt 0:00:06]} 28. Ka1 {[%emt 0:00:04]} a3 {[%emt 0:00:54]} 29. bxa3 {[%emt 0:01:03]} Qxg2 {[%emt 0:01:02]} 30. Rhh1 {[%emt 0:00:45]} Rc2 {[%emt 0:00:59]} 31. Nc1 {[%emt 0:30:30]} Rcb2 {[%emt 0:30:20]} 0-1